fUSD/lending_fUSD_20250111
["ID","MTS","AMOUNT","RATE_DAILY","PERIOD"]
[348572525,1736628634823,-500.0,0.00011677,2]
[348572526,1736628634832,-500.0,0.00011677,2]
[348572527,1736628634841,-500.0,0.00011677,2]
[348572528,1736628634851,-500.0,0.00011677,2]
[348572529,1736628634861,-500.0,0.00011677,2]
[348572530,1736628634870,-500.0,0.00011677,2]
[348572531,1736628634880,-500.0,0.00011677,2]
[348572532,1736628634890,-500.0,0.00011677,2]
[348572533,1736628634900,-500.0,0.00011677,2]
[348572534,1736628634910,-500.0,0.00011677,2]
[348572535,1736628634922,-500.0,0.00011677,2]
[348572536,1736628634931,-309.02834514,0.00011677,2]
[348572537,1736628634940,-500.0,0.00011677,2]
[348572538,1736628634950,-500.0,0.00011677,2]
[348572539,1736628634959,-500.0,0.00011677,2]
[348572540,1736628634968,-500.0,0.00011677,2]
[348572541,1736628634977,-500.0,0.00011677,2]
[348572542,1736628634986,-500.0,0.00011677,2]
[348572543,1736628634996,-500.0,0.00011677,2]
[348572544,1736628635005,-500.0,0.00011677,2]
[348572545,1736628635014,-500.0,0.00011677,2]
[348572546,1736628635023,-500.0,0.00011678,2]
[348572547,1736628635033,-500.0,0.00011678,2]
[348572548,1736628635042,-500.0,0.00011678,2]
[348572549,1736628635051,-500.0,0.00011678,2]
[348572550,1736628635061,-687.51,0.00011678,2]
[348572551,1736628635070,-500.0,0.00011678,2]
[348572552,1736628635079,-500.0,0.00011678,2]
[348572553,1736628635089,-500.0,0.00011678,2]
[348572554,1736628635098,-530.9,0.00011678,2]
[348572555,1736628635107,-500.0,0.00011678,2]
[348572556,1736628635116,-500.0,0.00011678,2]
[348572557,1736628635125,-500.0,0.00011678,2]
[348572558,1736628635134,-500.0,0.00011678,2]
[348572559,1736628635144,-500.0,0.00011679,2]
[348572560,1736628635153,-500.0,0.00011679,2]
[348572561,1736628635162,-500.0,0.00011679,2]
[348572562,1736628635172,-500.0,0.00011679,2]
[348572563,1736628635181,-500.0,0.00011679,2]
[348572564,1736628635190,-500.0,0.00011679,2]
[348572565,1736628635199,-529.83,0.00011679,2]
[348572566,1736628635208,-1897.63,0.00011679,2]
[348572567,1736628635218,-500.0,0.00011679,2]
[348572568,1736628635227,-575.22,0.00011679,2]
[348572569,1736628635236,-500.0,0.00011679,2]
[348572570,1736628635246,-500.0,0.00011679,2]
[348572571,1736628635255,-500.0,0.00011679,2]
[348572572,1736628635264,-500.0,0.00011679,2]
[348572573,1736628635273,-190.655,0.0001168,2]
[348572574,1736628635283,-380.92,0.00011847,2]
[348572575,1736628635292,-207.00511661,0.000119,2]
[348572576,1736628635302,-152.03,0.00011929,2]
[348572577,1736628635311,-150.48,0.00011929,2]
[348572578,1736628635320,-285.36505646,0.00011936,2]
[348572579,1736628635329,-500.0,0.00011951,2]
[348572580,1736628635338,-500.0,0.00011951,2]
[348572581,1736628635348,-500.0,0.00011951,2]
[348572582,1736628635357,-500.0,0.00011951,2]
[348572583,1736628635367,-500.0,0.00011951,2]
[348572584,1736628635376,-500.0,0.00011951,2]
[348572585,1736628635385,-500.0,0.00011951,2]
[348572586,1736628635395,-500.0,0.00011951,2]
[348572587,1736628635404,-619.1,0.00011951,2]
[348572588,1736628635414,-500.0,0.00011951,2]
[348572589,1736628635423,-979.94,0.00011951,2]
[348572590,1736628635432,-500.0,0.00011951,2]
[348572591,1736628635442,-1522.89,0.00011951,2]
[348572592,1736628635451,-857.45,0.00011951,2]
[348572593,1736628635461,-500.0,0.00011951,2]
[348572594,1736628635471,-500.0,0.00011951,2]
[348572595,1736628635480,-514.2,0.00011951,2]
[348572596,1736628635490,-1143.04,0.00011951,2]
[348572597,1736628635499,-534.4,0.00011951,2]
[348572598,1736628635510,-500.0,0.00011951,2]
[348572599,1736628635520,-500.0,0.00011951,2]
[348572600,1736628635530,-500.0,0.00011951,2]
[348572601,1736628635539,-500.0,0.00011951,2]
[348572602,1736628635549,-500.0,0.00011951,2]
[348572603,1736628635559,-500.0,0.00011951,2]
[348572604,1736628635568,-795.5,0.00011951,2]
[348572605,1736628635578,-500.0,0.00011951,2]
[348572606,1736628635588,-500.0,0.00011951,2]
[348572607,1736628635598,-500.0,0.00011951,2]
[348572608,1736628635607,-906.73,0.00011951,2]
[348572609,1736628635617,-500.0,0.00011952,2]
[348572610,1736628635626,-500.0,0.00011952,2]
[348572611,1736628635635,-500.0,0.00011952,2]
[348572612,1736628635645,-500.0,0.00011952,2]
[348572613,1736628635654,-514.18,0.00011952,2]
[348572614,1736628635664,-500.0,0.00011952,2]
[348572615,1736628635673,-500.0,0.00011952,2]
[348572616,1736628635683,-565.64,0.00011952,2]
[348572617,1736628635692,-500.0,0.00011952,2]
[348572618,1736628635701,-500.0,0.00011952,2]
[348572619,1736628635710,-500.0,0.00011952,2]
[348572620,1736628635719,-500.0,0.00011952,2]
[348572621,1736628635728,-1313.55,0.00011952,2]
[348572622,1736628635737,-514.28,0.00011952,2]
[348572623,1736628635746,-801.27,0.00011952,2]
[348572624,1736628635755,-2283.8,0.00011952,2]
[348572625,1736628635764,-500.0,0.00011952,2]
[348572626,1736628635774,-500.0,0.00011952,2]
[348572627,1736628635784,-500.0,0.00011952,2]
[348572628,1736628635793,-1052.37,0.00011952,2]
[348572629,1736628635802,-1299.56,0.00011952,2]
[348572630,1736628635811,-500.0,0.00011952,2]
[348572631,1736628635820,-687.51,0.00011952,2]
[348572632,1736628635829,-244.16779116,0.00011952,2]
[348572633,1736628635845,-255.83220884,0.00011952,2]
[348572634,1736628635853,-614.28,0.00011952,2]
[348572635,1736628635862,-500.0,0.00011952,2]
[348572636,1736628635871,-500.0,0.00011952,2]
[348572637,1736628635880,-500.0,0.00011952,2]
[348572638,1736628635889,-530.9,0.00011952,2]
[348572639,1736628635898,-500.0,0.00011952,2]
[348572640,1736628635907,-500.0,0.00011952,2]
[348572641,1736628635920,-500.0,0.00011952,2]
[348572642,1736628635930,-173.98779116,0.00011952,2]
[348572643,1736628635941,-326.01220884,0.00011952,2]
[348572644,1736628635950,-5193.19113707,0.00011953,2]
[348572645,1736628636209,-7083.81486421,0.00011953,2]
[348572646,1736628636220,-2310.14988369,0.00011953,2]
[348572676,1736628636576,-500.0,0.00011677,2]
[348572678,1736628636586,-500.0,0.00011951,2]
[348572680,1736628636595,-282.5,0.00011953,2]
[348572682,1736628636607,-918.8235,0.00011953,2]
[348572685,1736628636628,-2116.0707694,0.00011953,2]
[348572687,1736628636639,-32033.83313493,0.00011953,2]
[348572689,1736628636648,-500.0,0.00011953,2]
[348572691,1736628636658,-500.0,0.00011953,2]
[348572693,1736628636667,-500.0,0.00011953,2]
[348572695,1736628636676,-500.0,0.00011953,2]
[348572697,1736628636686,-500.0,0.00011953,2]
[348572699,1736628636695,-500.0,0.00011953,2]
[348572701,1736628636704,-529.83,0.00011953,2]
[348572703,1736628636713,-1897.63,0.00011953,2]
[348572705,1736628636723,-500.0,0.00011953,2]
[348572707,1736628636732,-575.22,0.00011953,2]
[348572709,1736628636741,-500.0,0.00011953,2]
[348572711,1736628636751,-500.0,0.00011953,2]
[348572713,1736628636760,-500.0,0.00011953,2]
[348572715,1736628636769,-500.0,0.00011953,2]
[348572717,1736628636778,-1000.0,0.00012,3]
[348572719,1736628636787,-1000.0,0.00012,4]
[348572721,1736628636796,-647.0,0.00012,4]
[348572722,1736628636806,-1000.0,0.00012,3]
[348572724,1736628636815,-1000.0,0.00012,3]
[348572726,1736628636824,-1784.2784,0.00012015,2]
[348572728,1736628636836,-11864.9256,0.00012016,2]
[348572730,1736628636846,-1252.913,0.00012023,2]
[348572733,1736628636856,-150.0,0.00012027,2]
[348572735,1736628636866,-152.2,0.0001203,2]
[348572737,1736628636876,-183.9168204,0.00012053,2]
[348572738,1736628636886,-200.0,0.00012055,2]
[348572741,1736628636896,-150.0,0.00012056,2]
[348572743,1736628636905,-1500.0,0.0001206,2]
[348572745,1736628636917,-1500.0,0.00012061,2]
[348572747,1736628636927,-150.0,0.00012063,2]
[348572749,1736628636936,-150.0,0.00012067,2]
[348572751,1736628636945,-150.0,0.00012094,2]
[348572753,1736628636955,-3850.3344,0.00012099,2]
[348572755,1736628636966,-414.12,0.00012106,2]
[348572757,1736628636975,-414.12,0.00012106,2]
[348572759,1736628636986,-414.12,0.00012106,2]
[348572761,1736628636996,-414.12,0.00012106,2]
[348572763,1736628637006,-414.12,0.00012106,2]
[348572765,1736628637016,-500.0,0.00012115,2]
[348572767,1736628637025,-500.0,0.00012115,2]
[348572768,1736628637034,-500.0,0.00012115,2]
[348572771,1736628637044,-500.0,0.00012115,2]
[348572772,1736628637054,-500.0,0.00012115,2]
[348572774,1736628637063,-500.0,0.00012115,2]
[348572776,1736628637073,-500.0,0.00012115,2]
[348572778,1736628637082,-500.0,0.00012115,2]
[348572780,1736628637091,-500.0,0.00012115,2]
[348572782,1736628637100,-500.0,0.00012115,2]
[348572784,1736628637110,-500.0,0.00012115,2]
[348572786,1736628637119,-500.0,0.00012115,2]
[348572788,1736628637128,-183.803745,0.00012115,2]
[348572790,1736628637138,-385.66645447,0.00012115,2]
[348572792,1736628637147,-500.0,0.00012115,2]
[348572794,1736628637156,-809.85,0.00012115,2]
[348572796,1736628637166,-500.0,0.00012115,2]
[348572798,1736628637175,-500.0,0.00012115,2]
[348572800,1736628637184,-500.0,0.00012115,2]
[348572802,1736628637193,-500.0,0.00012115,2]
[348572804,1736628637202,-500.0,0.00012115,2]
[348572806,1736628637212,-500.0,0.00012115,2]
[348572808,1736628637221,-849.76,0.00012115,2]
[348572810,1736628637231,-500.0,0.00012115,2]
[348572812,1736628637240,-356.7175,0.00012115,2]
[348572814,1736628637250,-699.45,0.00012115,2]
[348572816,1736628637259,-500.0,0.00012115,2]
[348572818,1736628637268,-500.0,0.00012115,2]
[348572820,1736628637278,-500.0,0.00012115,2]
[348572821,1736628637287,-579.31,0.00012115,2]
[348572823,1736628637297,-500.0,0.00012115,2]
[348572825,1736628637307,-500.0,0.00012115,2]
[348572827,1736628637316,-500.0,0.00012115,2]
[348572829,1736628637325,-896.01,0.00012115,2]
[348572831,1736628637335,-507.96900712,0.00012115,2]
[348572833,1736628637344,-500.0,0.00012115,2]
[348572835,1736628637353,-500.0,0.00012115,2]
[348572837,1736628637362,-889.92,0.00012115,2]
[348572839,1736628637371,-500.0,0.00012115,2]
[348572841,1736628637380,-564.54709994,0.00012115,2]
[348572843,1736628637389,-500.0,0.00012115,2]
[348572845,1736628637398,-500.0,0.00012115,2]
[348572847,1736628637407,-500.0,0.00012115,2]
[348572849,1736628637417,-500.0,0.00012115,2]
[348572851,1736628637426,-500.0,0.00012115,2]
[348572853,1736628637435,-501.46286482,0.00012115,2]
[348572855,1736628637444,-500.96049419,0.00012115,2]
[348572857,1736628637454,-37676.45747943,0.00012115,4]
[348572858,1736628637463,-447.8109891,0.00012116,2]
[348572939,1736628638328,-151.29,0.00011972,2]
[348572941,1736628638337,-17824.72278535,0.00012116,2]
[348572947,1736628638384,-296.664,0.00012116,2]
[348572949,1736628638396,-7270.766872,0.00012116,2]
[348572951,1736628638407,-344.1324579,0.00012116,2]
[348572954,1736628638419,-2473.45,0.00012116,2]
[348572957,1736628638443,-14935.85199795,0.00012116,2]
[348572959,1736628638455,-401212.79082252,0.00012116,2]
[348572962,1736628638464,-150.0,0.00012124,2]
[348572964,1736628638473,-150.0,0.00012127,2]
[348572965,1736628638483,-150.0,0.0001213,2]
[348572968,1736628638492,-150.0,0.00012168,2]
[348572969,1736628638501,-1500.0,0.00012174,2]
[348572971,1736628638511,-414.12,0.00012189,2]
[348572974,1736628638521,-414.12,0.0001219,2]
[348572976,1736628638530,-500.0,0.00012196,2]
[348572978,1736628638540,-2000.0,0.00012196,2]
[348572979,1736628638549,-200.0,0.00012196,2]
[348572981,1736628638558,-47046.3549,0.00012199,2]
[348572984,1736628638568,-1000.0,0.00012199,2]
[348572985,1736628638577,-31037.5728,0.000122,2]
[348572987,1736628638586,-156.02517307,0.000122,2]
[348572989,1736628638595,-1288.0,0.000122,2]
[348572991,1736628638605,-500.0,0.00012225,2]
[348572993,1736628638614,-500.0,0.00012225,2]
[348572995,1736628638624,-500.0,0.00012225,2]
[348572997,1736628638633,-500.0,0.00012225,2]
[348572999,1736628638642,-500.0,0.00012225,2]
[348573001,1736628638651,-272.26,0.00012225,2]
[348573003,1736628638661,-619.1,0.00012225,2]
[348573005,1736628638670,-979.94,0.00012225,2]
[348573007,1736628638680,-500.0,0.00012225,2]
[348573009,1736628638690,-1522.89,0.00012225,2]
[348573011,1736628638699,-857.45,0.00012225,2]
[348573013,1736628638708,-500.0,0.00012225,2]
[348573015,1736628638717,-406.63,0.00012225,2]
[348573017,1736628638727,-514.2,0.00012225,2]
[348573019,1736628638736,-1143.04,0.00012225,2]
[348573021,1736628638745,-534.4,0.00012225,2]
[348573023,1736628638754,-500.0,0.00012225,2]
[348573025,1736628638763,-354.9,0.00012225,2]
[348573027,1736628638772,-500.0,0.00012225,2]
[348573029,1736628638781,-795.5,0.00012225,2]
[348573031,1736628638790,-382.92906358,0.00012225,2]
[348573033,1736628638799,-906.73,0.00012225,2]
[348573035,1736628638809,-278.63627379,0.00012225,2]
[348573037,1736628638819,-500.0,0.00012226,2]
[348573039,1736628638828,-500.0,0.00012226,2]
[348573041,1736628638838,-500.0,0.00012226,2]
[348573043,1736628638847,-500.0,0.00012226,2]
[348573045,1736628638856,-1313.55,0.00012226,2]
[348573047,1736628638865,-514.28,0.00012226,2]
[348573049,1736628638877,-801.27,0.00012226,2]
[348573051,1736628638886,-1813.24610459,0.00012226,2]
[348573074,1736628639093,-470.55389541,0.00012226,2]
[348573082,1736628639145,-500.0,0.00012226,2]
[348573085,1736628639154,-93.20356678,0.00012226,2]
[348573087,1736628639165,-406.79643322,0.00012226,2]
[348573089,1736628639174,-424.86071678,0.00012226,2]
[348573091,1736628639192,-75.13928322,0.00012226,2]
[348573093,1736628639201,-1052.37,0.00012226,2]
[348573095,1736628639210,-1238.88970158,0.00012226,2]
[348573097,1736628639220,-60.67029842,0.00012226,2]
[348573099,1736628639229,-500.0,0.00012226,2]
[348573101,1736628639238,-687.51,0.00012226,2]
[348573103,1736628639247,-442.496027,0.00012226,2]
[348573105,1736628639258,-57.503973,0.00012226,2]
[348573108,1736628639267,-614.28,0.00012226,2]
[348573109,1736628639277,-500.0,0.00012226,2]
[348573111,1736628639286,-500.0,0.00012226,2]
[348573114,1736628639295,-500.0,0.00012226,2]
[348573116,1736628639304,-530.9,0.00012226,2]
[348573118,1736628639313,-500.0,0.00012226,2]
[348573120,1736628639323,-500.0,0.00012226,2]
[348573122,1736628639331,-500.0,0.00012226,2]
[348573124,1736628639340,-500.0,0.00012227,2]
[348573126,1736628639350,-500.0,0.00012227,2]
[348573127,1736628639360,-500.0,0.00012227,2]
[348573129,1736628639369,-500.0,0.00012227,2]
[348573132,1736628639379,-500.0,0.00012227,2]
[348573133,1736628639388,-529.83,0.00012227,2]
[348573136,1736628639398,-1897.63,0.00012227,2]
[348573138,1736628639407,-500.0,0.00012227,2]
[348573139,1736628639415,-575.22,0.00012227,2]
[348573142,1736628639425,-500.0,0.00012227,2]
[348573144,1736628639434,-500.0,0.00012227,2]
[348573146,1736628639443,-500.0,0.00012227,2]
[348573148,1736628639451,-500.0,0.00012227,2]
[348573150,1736628639461,-150.0,0.00012248,2]
[348573152,1736628639471,-150.0,0.00012253,2]
[348573154,1736628639480,-150.0,0.00012255,2]
[348573156,1736628639489,-398.19548874,0.00012274,2]
[348573158,1736628639498,-150.0,0.00012274,2]
[348573160,1736628639507,-213.68139173,0.00012274,2]
[348573162,1736628639516,-150.0,0.00012274,2]
[348573164,1736628639525,-398.19548874,0.00012286,2]
[348573166,1736628639535,-213.68139173,0.00012286,2]
[348573168,1736628639544,-322.61,0.00012287,2]
[348573170,1736628639552,-150.0,0.00012292,2]
[348573172,1736628639562,-157.118634,0.00012298,2]
[348573174,1736628639571,-500.0,0.00012298,2]
[348573176,1736628639580,-545.3,0.00012298,2]
[348573178,1736628639589,-512.28,0.00012298,2]
[348573180,1736628639598,-1077.63,0.00012298,2]
[348573182,1736628639607,-659.05,0.00012298,2]
[348573184,1736628639616,-500.0,0.00012298,2]
[348573185,1736628639626,-711.25,0.00012298,2]
[348573188,1736628639635,-398.19548874,0.00012299,2]
[348573189,1736628639644,-213.68139173,0.00012299,2]
[348573192,1736628639655,-13084.0,0.00012299,2]
[348573193,1736628639665,-2000.0,0.00012299,2]
[348573195,1736628639675,-200.0,0.00012299,2]
[348573197,1736628639684,-500.0,0.00012299,2]
[348573199,1736628639693,-150.0,0.00012299,2]
[348573201,1736628639702,-3000.0,0.00012299,2]
[348573203,1736628639711,-999.0,0.00012299,2]
[348573205,1736628639720,-500.0,0.00012299,2]
[348573207,1736628639729,-1000.0,0.00012299,2]
[348573209,1736628639738,-1000.0,0.00012299,2]
[348573211,1736628639747,-1000.0,0.00012299,2]
[348573213,1736628639756,-1000.0,0.00012299,2]
[348573215,1736628639765,-1000.0,0.00012299,2]
[348573217,1736628639774,-1000.0,0.00012299,2]
[348573219,1736628639784,-1000.0,0.00012299,2]
[348573221,1736628639793,-1000.0,0.00012299,2]
[348573223,1736628639803,-1000.0,0.00012299,2]
[348573225,1736628639813,-1000.0,0.00012299,2]
[348573227,1736628639822,-110689.38735879,0.000123,2]
[348573229,1736628639834,-403.400028,0.000123,2]
[348573232,1736628639845,-483.26885585,0.000123,2]
[348573234,1736628639855,-4600.0,0.000123,2]
[348573236,1736628639867,-610.22697178,0.000123,2]
[348573238,1736628639879,-9152.2394294,0.000123,2]
[348573240,1736628639891,-18403.79999999,0.000123,2]
[348573242,1736628639901,-92036.80000005,0.000123,2]
[348573245,1736628639913,-387.79444255,0.000123,2]
[348573247,1736628639927,-1038.53,0.000123,2]
[348573249,1736628639939,-3372.44109527,0.000123,2]
[348573252,1736628639956,-582.27999921,0.000123,2]
[348573254,1736628639967,-633.004498,0.000123,2]
[348573299,1736628640414,-864.60574511,0.000123,2]
[348573305,1736628640471,-10045.43233892,0.000123,2]
[348573308,1736628640482,-332.22853656,0.000123,2]
[348573310,1736628640493,-661.1386073,0.000123,2]
[348573312,1736628640504,-988.455,0.000123,2]
[348573314,1736628640514,-9258.0,0.000123,2]
[348573317,1736628640531,-19874.00709322,0.000123,2]
[348573319,1736628640540,-5779.39660678,0.000123,2]
[348573321,1736628640551,-1158.98339322,0.000123,2]
[348573323,1736628640560,-31000.92621027,0.000123,2]
[348573325,1736628640571,-3151.84771964,0.000123,2]
[348573329,1736628640596,-2753.06750605,0.000123,2]
[348573331,1736628640607,-1689.32837357,0.000123,2]
[348573337,1736628640653,-5829.85985594,0.000123,2]
[348573339,1736628640665,-360.626445,0.000123,2]
[348573345,1736628640710,-4873.88708573,0.000123,2]
[348573348,1736628640720,-1441.12,0.000123,2]
[348573354,1736628640766,-267.61263754,0.000123,2]
[348573356,1736628640777,-395.75607983,0.000123,2]
[348573358,1736628640788,-538.32008026,0.000123,2]
[348573363,1736628640822,-951.0,0.000123,2]
[348573365,1736628640833,-421.43719397,0.000123,2]
[348573367,1736628640847,-364.96708586,0.000123,2]
[348573610,1736628643473,-500.0,0.00011951,2]
[348573611,1736628643483,-8710.52416909,0.000123,2]
[348573613,1736628643494,-257.04,0.000123,2]
[348573617,1736628643533,-19499.53015513,0.000123,2]
[348573618,1736628643589,-15487.13671431,0.000123,2]
[348573619,1736628643649,-27551.01600001,0.000123,2]
[348573620,1736628643660,-941.0329676,0.000123,2]
[348573621,1736628643671,-921.85002,0.000123,2]
[348573622,1736628643760,-1163.41768572,0.000123,2]
[348573623,1736628643771,-3292.99628743,0.000123,2]
[348573672,1736628646381,-451.11234823,0.00011342,2]
[348573673,1736628646436,-242.24765177,0.00011342,2]
[348573674,1736628646445,-500.0,0.00011678,2]
[348573675,1736628646453,-500.0,0.00011951,2]
[348573676,1736628646462,-500.0,0.00012225,2]
[348573677,1736628646471,-1941.46006423,0.000123,2]
[348573678,1736628646494,-99255.42383006,0.000123,2]
[348573679,1736628646504,-1085.5,0.000123,2]
[348573680,1736628646551,-358.979945,0.00012,2]
[348573681,1736628646562,-2641.010055,0.00012,2]
[348573682,1736628646571,-8594.878569,0.000123,2]
[348573683,1736628646582,-92000.00000002,0.000123,2]
[348573684,1736628646609,-4587.0326824,0.000123,2]
[348573685,1736628646667,-18419.3108914,0.000123,2]
[348573701,1736629063953,-700.0,9.664e-05,2]
[348573702,1736629063975,-500.0,9.664e-05,2]
[348573703,1736629092328,600.0,8.464e-05,2]
[348573704,1736629124859,500.0,8.464e-05,2]
[348573706,1736629231362,649.67,8.982e-05,2]
[348573708,1736629533750,-271.80919609,9.834e-05,2]
[348573709,1736629533773,-600.0,9.834e-05,2]
[348573714,1736629582520,500.0,8.464e-05,2]
[348573727,1736629831540,-500.0,9.834e-05,2]
[348573728,1736629831550,-2579.04027306,0.0001,2]
[348573729,1736629831606,-810.97479043,0.0001,2]
[348573730,1736629831660,-5331.42497627,0.0001,2]
[348573731,1736629831669,-4124.72106867,0.00010251,4]
[348573732,1736629831678,-200.0,0.00010339,2]
[348573733,1736629831688,-160.38,0.00010865,2]
[348573734,1736629831698,-3241.90882397,0.00010871,2]
[348573735,1736629831711,-20658.09117603,0.00010871,2]
[348573736,1736629831723,-166.66666668,0.0001089,2]
[348573737,1736629831734,-349.99,0.00010898,2]
[348573738,1736629831743,-415.47261944,0.000109,2]
[348573739,1736629831752,-161.87,0.00010904,2]
[348573740,1736629831762,-186.33,0.00010956,2]
[348573741,1736629831771,-500.0,0.0001099,2]
[348573742,1736629831780,-250.0,0.0001099,2]
[348573743,1736629831790,-150.0,0.00010999,2]
[348573744,1736629831799,-24571.23708979,0.00011,2]
[348573745,1736629831837,-556.26670477,0.00011,2]
[348573746,1736629831855,-4237.39069681,0.00011,2]
[348573747,1736629831871,-525.00000005,0.00011,2]
[348573748,1736629831882,-599.36604234,0.00011,2]
[348573749,1736629831893,-1355.36960874,0.00011,2]
[348573750,1736629831904,-429.87641914,0.00011,2]
[348573751,1736629831915,-357.355385,0.00011,2]
[348573752,1736629831927,-68323.47469639,0.00011,2]
[348573753,1736629831938,-263.53964585,0.00011,2]
[348573754,1736629831957,-1976.1,0.00011,2]
[348573755,1736629831968,-809.55910396,0.00011,2]
[348574020,1736629837772,-9632.7189,0.00011,2]
[348574024,1736629837795,-2889.57,0.00011,2]
[348574026,1736629837807,-1956.22079084,0.00011,2]
[348574029,1736629837841,-3717.900868,0.00011,2]
[348574032,1736629837863,-817.58743076,0.00011,2]
[348574219,1736629839807,-3811.28256415,0.00011,2]
[348574221,1736629839819,-405.41647372,0.00011,2]
[348574224,1736629839830,-571.80617485,0.00011,2]
[348574226,1736629839841,-495.755,0.00011,2]
[348574228,1736629839853,-2870.81027372,0.00011,2]
[348574392,1736629842622,-8122.5852016,0.00011,2]
[348574393,1736629842678,-2222.62046918,0.00011,2]
[348574398,1736629845533,-985.87413438,0.00011,2]
[348574399,1736629845699,-7495.31632596,0.00011,2]
[348574400,1736629845709,-246.28811004,0.00011,2]
[348574422,1736629868009,500.0,8.464e-05,2]
[348574423,1736629925819,500.0,8.464e-05,2]
[348574495,1736631031749,-352.2600075,8.809e-05,2]
[348574496,1736631031763,-264.9199925,8.809e-05,2]
[348574497,1736631031772,-205.0,9.8e-05,2]
[348574498,1736631031781,-470.9200075,9.834e-05,2]
[348574499,1736631031792,-29.0799925,9.834e-05,2]
[348574500,1736631031801,-7233.27,9.841e-05,2]
[348574501,1736631031810,-1000.0,9.856e-05,2]
[348574502,1736631031820,-159.83968,9.973e-05,2]
[348574503,1736631031830,-159.83968,9.973e-05,2]
[348574504,1736631031839,-151.847696,9.973e-05,2]
[348574505,1736631031848,-159.83968,9.973e-05,2]
[348574506,1736631031858,-500.0,9.973e-05,2]
[348574507,1736631031868,-500.0,9.973e-05,2]
[348574508,1736631031877,-135.83329856,9.998e-05,2]
[348574509,1736631031888,-164.16670144,9.998e-05,2]
[348574510,1736631031897,-500.0,9.999e-05,2]
[348574511,1736631031906,-500.0,9.999e-05,2]
[348574512,1736631031915,-500.0,9.999e-05,2]
[348574513,1736631031924,-670.64,9.999e-05,2]
[348574514,1736631031933,-150.0,9.999e-05,2]
[348574515,1736631031942,-500.0,9.999e-05,2]
[348574516,1736631031951,-500.0,9.999e-05,2]
[348574517,1736631031960,-500.0,9.999e-05,2]
[348574518,1736631031969,-500.0,9.999e-05,2]
[348574519,1736631031978,-500.0,9.999e-05,2]
[348574520,1736631031987,-500.0,9.999e-05,2]
[348574521,1736631031996,-500.0,9.999e-05,2]
[348574522,1736631032007,-500.0,9.999e-05,2]
[348574523,1736631032016,-500.0,9.999e-05,2]
[348574524,1736631032025,-500.0,9.999e-05,2]
[348574525,1736631032034,-500.0,9.999e-05,2]
[348574526,1736631032043,-500.0,9.999e-05,2]
[348574527,1736631032053,-500.0,9.999e-05,2]
[348574528,1736631032062,-500.0,9.999e-05,2]
[348574529,1736631032072,-500.0,9.999e-05,2]
[348574530,1736631032081,-500.0,9.999e-05,2]
[348574531,1736631032091,-500.0,9.999e-05,2]
[348574532,1736631032100,-503.55491764,9.999e-05,2]
[348574533,1736631032110,-500.0,9.999e-05,2]
[348574534,1736631032119,-500.0,9.999e-05,2]
[348574535,1736631032128,-500.0,9.999e-05,2]
[348574536,1736631032138,-500.0,9.999e-05,2]
[348574537,1736631032147,-500.0,9.999e-05,2]
[348574538,1736631032157,-500.0,9.999e-05,2]